bitfinex/quotes_BTCUSD_20250705
["timestamp","ask_amount","ask_price","bid_price","bid_amount"]
[1751709421963,0.64919952,108250.0,108240.0,0.23310767]
[1751709427710,0.64919893,108250.0,108240.0,0.23310767]
[1751709428257,0.65843671,108250.0,108240.0,0.23310767]
[1751709429068,0.65843671,108250.0,108240.0,0.22386954]
[1751709429282,0.84319421,108250.0,108240.0,0.22386954]
[1751709430144,0.84319421,108250.0,108240.0,0.23310775]
[1751709431193,0.65843671,108250.0,108240.0,0.23310733]
[1751709431779,0.54033422,108250.0,108240.0,0.23310733]
[1751709433026,0.63177115,108250.0,108240.0,0.23310733]
[1751709433194,0.65391263,108250.0,108240.0,0.23310733]
[1751709433553,0.5624757,108250.0,108240.0,0.23310733]
[1751709436337,0.57171357,108250.0,108240.0,0.23310733]
[1751709436543,0.56247621,108250.0,108240.0,0.2238692]
[1751709436748,0.56247621,108250.0,108240.0,0.23310733]
[1751709443459,0.56247621,108250.0,108240.0,0.2238692]
[1751709444623,0.74723371,108250.0,108240.0,0.2238692]
[1751709444820,0.83867064,108250.0,108240.0,0.21463099]
[1751709445350,0.83867064,108250.0,108240.0,0.2238692]
[1751709446124,0.26429679,108250.0,108240.0,0.2238692]
[1751709446457,0.54400056,108250.0,108240.0,0.23310733]
[1751709452694,0.73799593,108250.0,108240.0,0.2238692]
[1751709453113,0.55323843,108250.0,108240.0,0.23310733]
[1751709453359,0.54400056,108250.0,108240.0,0.23310733]
[1751709454457,0.54400022,108250.0,108240.0,0.23310733]
[1751709455824,0.55323792,108250.0,108240.0,0.23310733]
[1751709457354,0.54400022,108250.0,108240.0,0.23310733]
[1751709457996,0.55323792,108250.0,108240.0,0.23310733]
[1751709460796,0.54400022,108250.0,108240.0,0.23310733]
[1751709461246,0.54012022,108250.0,108240.0,0.23310733]
[1751709461449,0.52800022,108250.0,108240.0,0.23310733]
[1751709462813,0.53723792,108250.0,108240.0,0.23310733]
[1751709465806,0.52800022,108250.0,108240.0,0.23310733]
[1751709466437,0.53723792,108250.0,108240.0,0.23310733]
[1751709467481,0.52800022,108250.0,108240.0,0.23310733]
[1751709467900,0.52203724,108250.0,108240.0,0.23310733]
[1751709469182,0.24233347,108250.0,108240.0,0.23310733]
[1751709469371,0.52203724,108250.0,108240.0,0.23310733]
[1751709470237,0.62271178,108250.0,108240.0,0.23310733]
[1751709470561,0.53127485,108250.0,108240.0,0.23310733]
[1751709471163,0.52203724,108250.0,108240.0,0.23310733]
[1751709472098,0.53127485,108250.0,108240.0,0.23310733]
[1751709473808,0.54051255,108250.0,108240.0,0.23310733]
[1751709474005,0.35403255,108250.0,108240.0,0.23310733]
[1751709474209,0.54047255,108250.0,108240.0,0.23310733]
[1751709474790,0.58074432,108250.0,108240.0,0.23310733]
[1751709474971,0.54047255,108250.0,108240.0,0.23310733]
[1751709476030,0.53123485,108250.0,108240.0,0.23310733]
[1751709480253,0.02814148,108250.0,108240.0,0.23310733]
[1751709480467,0.48134087,108250.0,108240.0,0.26490733]
[1751709480677,0.50348235,108250.0,108240.0,0.26490733]
[1751709480825,0.49424525,108250.0,108240.0,0.26490733]
[1751709481226,0.50348244,108250.0,108240.0,0.24900733]
[1751709483073,0.50348244,108250.0,108240.0,0.24900733]
[1751709484478,0.49424525,108250.0,108240.0,0.24900733]
[1751709484887,0.21454148,108250.0,108240.0,0.24900733]
[1751709485081,0.47210377,108250.0,108240.0,0.26550733]
[1751709485292,0.49424525,108250.0,108240.0,0.26550733]
[1751709490172,0.02814148,108250.0,108240.0,0.61816926]
[1751709490370,0.1924,108250.0,108240.0,0.5452111]
[1751709490877,0.1924,108250.0,108240.0,0.26550733]
[1751709491080,0.1904,108250.0,108240.0,0.26550733]
[1751709491528,0.1914,108250.0,108240.0,0.26550733]
[1751709492151,0.1874,108250.0,108240.0,0.26550733]
[1751709492560,0.1894,108250.0,108240.0,0.26550733]
[1751709496566,0.1986371,108250.0,108240.0,0.26550733]
[1751709496684,0.1894,108250.0,108240.0,0.26550733]
[1751709506562,0.1894,108250.0,108240.0,0.31078733]
[1751709507744,0.1986371,108250.0,108240.0,0.31078733]
[1751709508944,0.48757814,108250.0,108240.0,0.27838733]
[1751709509272,0.50971962,108250.0,108240.0,0.27838733]
[1751709509710,0.51895706,108250.0,108240.0,0.27838733]
[1751709510127,0.50971962,108250.0,108240.0,0.27838733]
[1751709510660,0.51895706,108250.0,108240.0,0.27838733]
[1751709511065,0.23925329,108250.0,108240.0,0.27838733]
[1751709511281,0.48757814,108250.0,108240.0,0.27838733]
[1751709511491,0.51895706,108250.0,108240.0,0.27838733]
[1751709512578,0.51895698,108250.0,108240.0,0.27838733]
[1751709513410,0.52819442,108250.0,108240.0,0.27838733]
[1751709517312,0.51895698,108250.0,108240.0,0.27838733]
[1751709520938,0.81283748,108250.0,108240.0,0.18691584]
[1751709521141,0.81283748,108250.0,108240.0,0.19615439]
[1751709521601,0.81283748,108250.0,108240.0,0.19615448]
[1751709521810,0.52389635,108250.0,108240.0,0.19615448]
[1751709522020,0.80360012,108250.0,108240.0,0.19615448]
[1751709523681,0.80360012,108250.0,108240.0,0.20539303]
[1751709523885,0.80360012,108250.0,108240.0,0.2146315]
[1751709524088,0.72597823,108250.0,108240.0,0.2146315]
[1751709524708,0.54122022,108250.0,108240.0,0.23310784]
[1751709524932,0.55045792,108250.0,108240.0,0.23310784]
[1751709532440,0.5596957,108250.0,108240.0,0.23310784]
[1751709532664,0.65113263,108250.0,108240.0,0.23310784]
[1751709532873,0.64189485,108250.0,108240.0,0.23310784]
[1751709536821,0.54122022,108250.0,108240.0,0.23310784]
[1751709537032,0.55045724,108250.0,108240.0,0.23310784]
[1751709537863,0.55969494,108250.0,108240.0,0.23310784]
[1751709538069,0.55969485,108250.0,108240.0,0.23310784]
[1751709542290,0.55045724,108250.0,108240.0,0.23310784]
[1751709549019,0.35481971,108250.0,108240.0,0.23310784]
[1751709549220,0.52579971,108250.0,108240.0,0.23310784]
[1751709549936,0.52579962,108250.0,108240.0,0.23310784]
[1751709550135,0.50959962,108250.0,108240.0,0.23310784]
[1751709550342,0.51883706,108250.0,108240.0,0.23310784]
[1751709551108,0.52807467,108250.0,108240.0,0.23310784]
[1751709551499,0.50959962,108250.0,108240.0,0.23310784]
[1751709551712,0.51883706,108250.0,108240.0,0.23310784]
[1751709555036,0.49669558,108250.0,108240.0,0.23310784]
[1751709555234,0.51889148,108250.0,108240.0,0.23310784]
[1751709555438,0.53023566,108250.0,108240.0,0.23310784]
[1751709556684,0.51889148,108250.0,108240.0,0.23310784]
[1751709561332,0.50965404,108250.0,108240.0,0.23310784]
[1751709562373,0.5188914,108250.0,108240.0,0.23310784]
[1751709563464,0.2114359,108250.0,108240.0,0.23310784]
[1751709563684,0.18924,108250.0,108240.0,0.54481161]
[1751709563886,0.18924,108250.0,108240.0,0.26510784]
[1751709565020,0.1984771,108250.0,108240.0,0.26510784]
[1751709568716,0.1984771,108250.0,108240.0,0.23310784]
[1751709568854,0.20771429,108250.0,108240.0,0.23310784]
[1751709569059,0.003,108250.0,108240.0,0.26420784]
[1751709569253,0.1984771,108250.0,108240.0,0.26420784]
[1751709570736,0.20771437,108250.0,108240.0,0.26420784]
[1751709571431,0.1984771,108250.0,108240.0,0.26420784]
[1751709573294,0.20771429,108250.0,108240.0,0.26420784]
[1751709574726,0.48741806,108250.0,108240.0,0.26420784]
[1751709574927,0.51885132,108250.0,108240.0,0.26420784]
[1751709575725,0.51885132,108250.0,108240.0,0.24910784]
[1751709575921,0.51885132,108250.0,108240.0,0.23310784]
[1751709578356,0.5589853,108250.0,108240.0,0.23310784]
[1751709578683,0.55898522,108250.0,108240.0,0.23310784]
[1751709580327,0.52808885,108250.0,108240.0,0.23310784]
[1751709582871,0.53732646,108250.0,108240.0,0.23310784]
[1751709584106,0.53732706,108250.0,108240.0,0.23310784]
[1751709584508,0.52808936,108250.0,108240.0,0.23310784]
[1751709589604,0.51885175,108250.0,108240.0,0.23310784]
[1751709591887,0.51885175,108250.0,108240.0,0.27830784]
[1751709602298,0.23914798,108250.0,108240.0,0.27830784]
[1751709602495,0.51885175,108250.0,108240.0,0.27830784]
[1751709603520,0.23914798,108250.0,108240.0,0.27830784]
[1751709603702,0.22067309,108250.0,108240.0,0.27830784]
[1751709603951,0.50961422,108250.0,108240.0,0.27830784]
[1751709606777,0.61028859,108250.0,108240.0,0.27830784]
[1751709606987,0.60105115,108250.0,108240.0,0.27830784]
[1751709607197,0.61028876,108250.0,108240.0,0.27830784]
[1751709608243,0.61028868,108250.0,108240.0,0.27830784]
[1751709608487,0.82754669,108250.0,108240.0,0.18691584]
[1751709608701,0.82754669,108250.0,108240.0,0.20539295]
[1751709608907,0.81830933,108250.0,108240.0,0.20539295]
[1751709610594,0.81830933,108250.0,108240.0,0.21463133]
[1751709610971,0.63355183,108250.0,108240.0,0.22386946]
[1751709611197,0.62059371,108250.0,108240.0,0.22386946]
[1751709611480,0.52915678,108250.0,108240.0,0.22386946]
[1751709614516,0.519919,108250.0,108240.0,0.22386946]
[1751709615181,0.487419,108250.0,108240.0,0.22386946]
[1751709615547,0.519619,108250.0,108240.0,0.22386946]
[1751709618614,0.23991523,108250.0,108240.0,0.22386946]
[1751709618860,0.52885627,108250.0,108240.0,0.22386946]
[1751709620266,0.6202932,108250.0,108240.0,0.22386946]
[1751709620671,0.6046932,108250.0,108240.0,0.22386946]
[1751709621460,0.5954555,108250.0,108240.0,0.22386946]
[1751709621671,0.50401857,108250.0,108240.0,0.22386946]
[1751709622290,0.51325627,108250.0,108240.0,0.22386946]
[1751709622672,0.58325627,108250.0,108240.0,0.22386946]
[1751709623312,0.59249414,108250.0,108240.0,0.22386946]
[1751709623536,0.60879414,108250.0,108240.0,0.22386946]
[1751709623743,0.70023107,108250.0,108240.0,0.22386946]
[1751709624422,0.6909932,108250.0,108240.0,0.22386946]
[1751709626014,0.70023107,108250.0,108240.0,0.22386946]
[1751709626204,0.6909932,108250.0,108240.0,0.22386946]
[1751709628435,0.88498857,108250.0,108240.0,0.22386946]
[1751709629038,0.70023107,108250.0,108240.0,0.22386946]
[1751709629413,0.6909932,108250.0,108240.0,0.22386946]
[1751709629870,0.70023098,108250.0,108240.0,0.22386946]
[1751709634848,0.70946885,108250.0,108240.0,0.22386946]
[1751709636211,0.70023098,108250.0,108240.0,0.22386946]
[1751709637429,0.66733098,108250.0,108240.0,0.22386946]
[1751709637639,0.38762721,108250.0,108240.0,0.22386946]
[1751709637864,0.56665627,108250.0,108240.0,0.22386946]
[1751709638856,0.2869525,108250.0,108240.0,0.22386946]
[1751709639064,0.56665627,108250.0,108240.0,0.22386946]
[1751709640930,0.55741865,108250.0,108240.0,0.22386946]
[1751709642067,0.56665601,108250.0,108240.0,0.26902946]
[1751709643957,0.56665601,108250.0,108240.0,0.22386946]
[1751709644390,0.28695224,108250.0,108240.0,0.22386946]
[1751709644598,0.56665601,108250.0,108240.0,0.22386946]
[1751709645835,0.56665593,108250.0,108240.0,0.22386946]
[1751709654540,0.27771463,108250.0,108240.0,0.22386946]
[1751709654753,0.28695216,108250.0,108240.0,0.22386946]
[1751709655169,0.56665593,108250.0,108240.0,0.22386946]
[1751709655962,0.57589354,108250.0,108240.0,0.22386946]
[1751709657813,0.60603402,108250.0,108240.0,0.22386946]
[1751709659155,0.28695216,108250.0,108240.0,0.22386946]
[1751709659382,0.56665593,108250.0,108240.0,0.22386946]
[1751709660923,0.57589363,108250.0,108240.0,0.22386946]
[1751709662313,0.56665593,108250.0,108240.0,0.22386946]
[1751709662518,0.79175113,108250.0,108240.0,0.20539286]
[1751709662758,0.88318806,108250.0,108240.0,0.21463107]
[1751709663212,0.88318806,108250.0,108240.0,0.20539286]
[1751709664271,0.88318806,108250.0,108240.0,0.21463116]
[1751709665753,0.59424702,108250.0,108240.0,0.21463116]
[1751709666209,0.68919329,108250.0,108240.0,0.2331075]
[1751709666872,0.69843107,108250.0,108240.0,0.2331075]
[1751709673592,0.68333107,108250.0,108240.0,0.2331075]
[1751709673816,0.69256894,108250.0,108240.0,0.2331075]
[1751709674250,0.69256894,108250.0,108240.0,0.22386937]
[1751709674251,0.86808908,108250.0,108240.0,0.22386937]
[1751709674479,0.48785371,108250.0,108240.0,0.22386929]
[1751709674722,0.69039371,108250.0,108240.0,0.22386929]
[1751709677196,0.67389371,108250.0,108240.0,0.22386929]
[1751709677424,0.65789371,108250.0,108240.0,0.22386929]
[1751709678813,0.67399371,108250.0,108240.0,0.22386929]
[1751709679764,0.71838633,108250.0,108240.0,0.22386929]
[1751709680686,0.70228633,108250.0,108240.0,0.22386929]
[1751709681424,0.69304855,108250.0,108240.0,0.22386929]
[1751709682636,0.62304855,108250.0,108240.0,0.22386929]
[1751709684646,0.88304855,108250.0,108240.0,0.22386929]
[1751709684871,0.62304855,108250.0,108240.0,0.22386929]
[1751709686134,0.34334478,108250.0,108240.0,0.22386929]
[1751709686355,0.62304855,108250.0,108240.0,0.22386929]
[1751709688361,0.63228633,108250.0,108240.0,0.22386929]
[1751709689688,0.89228633,108250.0,108240.0,0.22386929]
[1751709693315,0.88304855,108250.0,108240.0,0.22386929]
[1751709694597,0.79161162,108250.0,108240.0,0.22386929]
[1751709695633,0.79161119,108250.0,108240.0,0.22386929]
[1751709696068,0.80084889,108250.0,108240.0,0.22386929]
[1751709704095,0.51190742,108250.0,108240.0,0.22386929]
[1751709704312,0.5119075,108250.0,108240.0,0.22386929]
[1751709704574,0.30739262,108250.0,108240.0,0.53607306]
[1751709704796,0.28519631,108250.0,108240.0,0.90721376]
[1751709705242,0.02519631,108250.0,108240.0,1.26175461]
[1751709706136,0.02419631,108250.0,108240.0,1.26175461]
[1751709706356,0.02219631,108250.0,108240.0,1.26175461]
[1751709706808,0.02219631,108250.0,108240.0,0.70234707]
[1751709706995,0.02219631,108250.0,108240.0,1.26175461]
[1751709713716,0.02219631,108250.0,108240.0,0.70234707]
[1751709713939,0.02219631,108250.0,108240.0,1.26175461]
[1751709718118,0.02219631,108250.0,108240.0,0.70234707]
[1751709718316,0.02219631,108250.0,108240.0,1.26175461]
[1751709723202,0.02219631,108250.0,108240.0,1.44775461]
[1751709729030,0.02219631,108250.0,108240.0,0.88834707]
[1751709729245,0.02219631,108250.0,108240.0,1.44423461]
[1751709735950,0.02215631,108250.0,108240.0,1.44423461]
[1751709744543,0.02215631,108250.0,108240.0,0.88482707]
[1751709744764,0.02215631,108250.0,108240.0,1.44423461]
[1751709748309,0.02215631,108250.0,108240.0,1.48931461]
[1751709751897,0.02215631,108250.0,108240.0,1.48927461]
[1751709752226,0.02215631,108250.0,108240.0,1.45677461]
[1751709752644,0.02215631,108250.0,108240.0,1.17707084]
[1751709753432,0.06199624,108250.0,108240.0,0.89736707]
[1751709753642,0.09469624,108250.0,108240.0,0.89736707]
[1751709754270,0.09469624,108250.0,108240.0,1.17707084]
[1751709754655,0.05485631,108250.0,108240.0,1.17707084]
[1751709754853,0.05485631,108250.0,108240.0,0.89736707]
[1751709755057,0.05485631,108250.0,108240.0,1.17707084]
[1751709756443,0.05485631,108250.0,108240.0,0.93148999]
[1751709756687,0.05485631,108250.0,108240.0,0.88286622]
[1751709756902,0.09755718,108250.0,108240.0,0.88286622]
[1751709757517,0.09755718,108250.0,108240.0,1.16256999]
[1751709760366,0.09755718,108250.0,108240.0,0.88286622]
[1751709760611,0.09755718,108250.0,108240.0,1.16256999]
[1751709761814,0.38649822,108250.0,108240.0,0.56034929]
[1751709762015,0.38649822,108250.0,108240.0,0.60542929]
[1751709763076,0.37726095,108250.0,108240.0,0.60542929]
[1751709763302,0.38649805,108250.0,108240.0,0.60542929]
[1751709763514,0.05485631,108250.0,108240.0,0.60542929]
[1751709763727,0.03825631,108250.0,108240.0,0.88513306]
[1751709766683,0.05465631,108250.0,108240.0,0.88513306]
[1751709768263,0.05465631,108250.0,108240.0,0.60542929]
[1751709772934,0.05465631,108250.0,108240.0,0.88513306]
[1751709779965,0.05465631,108250.0,108240.0,0.60542929]
[1751709780170,0.05465631,108250.0,108240.0,0.88513306]
[1751709782668,0.05465631,108250.0,108240.0,0.60542929]
[1751709782885,0.05465631,108250.0,108240.0,0.88513306]
[1751709783915,0.11723177,108250.0,108240.0,0.88513306]
[1751709788086,0.11723177,108250.0,108240.0,0.60542929]
[1751709788417,0.11723177,108250.0,108240.0,0.88513306]
[1751709788555,0.05465631,108250.0,108240.0,0.88513306]
[1751709792767,0.05465631,108250.0,108240.0,0.60542929]
[1751709792989,0.05465631,108250.0,108240.0,0.88513306]
[1751709794576,0.03825631,108250.0,108240.0,0.60542929]
[1751709795104,0.02215631,108250.0,108240.0,0.88513306]
[1751709797353,0.02215631,108250.0,108240.0,0.88045306]
[1751709802737,0.02215631,108250.0,108240.0,0.60074929]
[1751709802941,0.02215631,108250.0,108240.0,0.88045306]
[1751709805032,0.02215631,108250.0,108240.0,0.60074929]
[1751709805241,0.08467175,108250.0,108240.0,0.60074929]
[1751709805436,0.08467175,108250.0,108240.0,0.88045306]
[1751709807189,0.08467175,108250.0,108240.0,0.60074929]
[1751709807395,0.10107175,108250.0,108240.0,0.88045306]
[1751709808230,0.10107175,108250.0,108240.0,0.60074929]
[1751709808432,0.10207175,108250.0,108240.0,0.88045306]
[1751709808772,0.10407175,108250.0,108240.0,0.88045306]
[1751709809173,0.11957175,108250.0,108240.0,0.88045306]
[1751709810790,0.10407175,108250.0,108240.0,0.88045306]
[1751709815376,0.02515631,108250.0,108240.0,0.88045306]
[1751709821823,0.02515631,108250.0,108240.0,0.88050306]
[1751709822049,0.02525631,108250.0,108240.0,0.88050306]
[1751709823153,0.02525631,108250.0,108240.0,0.97193999]
[1751709823371,0.02525631,108250.0,108240.0,1.29748461]
[1751709825354,0.02525631,108250.0,108240.0,1.48348461]
[1751709827071,0.02525631,108250.0,108240.0,0.84923999]
[1751709827485,0.02525631,108250.0,108240.0,0.66323999]
[1751709847754,0.02525631,108250.0,108240.0,0.94294376]
[1751709849035,0.02525631,108250.0,108240.0,0.95748461]
[1751709849499,0.02525631,108250.0,108240.0,1.32524761]
[1751709850224,0.02325631,108250.0,108240.0,1.51124761]
[1751709850370,0.02225631,108250.0,108240.0,1.51124761]
[1751709851379,0.02225631,108250.0,108240.0,1.51224761]
[1751709852687,0.02225631,108250.0,108240.0,1.51324761]
[1751709856234,0.0001,108250.0,108240.0,1.51324761]
[1751709869022,0.0001,108250.0,108240.0,0.76784007]
[1751709869240,0.0001,108250.0,108240.0,1.48198761]
[1751709869669,0.0001,108250.0,108240.0,1.25086761]
[1751709869885,0.0001,108250.0,108240.0,1.48194761]
[1751709875034,0.0306,108250.0,108240.0,0.92258007]
[1751709875247,0.06163038,108250.0,108240.0,1.20228384]
[1751709876046,0.06163038,108250.0,108240.0,0.92258007]
[1751709876250,0.06163038,108250.0,108240.0,0.67691922]
[1751709876464,0.34133415,108250.0,108240.0,0.54031622]
[1751709876683,0.34133415,108250.0,108240.0,0.30915622]
[1751709876890,0.06163038,108250.0,108240.0,0.35427622]
[1751709877530,0.06163038,108250.0,108240.0,0.35327622]
[1751709877733,0.06163038,108250.0,108240.0,0.35227622]
[1751709880523,0.06163038,108250.0,108240.0,0.63197999]
[1751709880711,0.0306,108250.0,108240.0,0.63197999]
[1751709901925,0.31030377,108250.0,108240.0,0.30715622]
[1751709902144,0.31030377,108250.0,108240.0,0.35227622]
[1751709903467,0.31230377,108250.0,108240.0,0.35227622]
[1751709903956,0.31330377,108250.0,108240.0,0.35227622]
[1751709904408,0.40413625,108250.0,108240.0,0.35227622]
[1751709904812,0.39489915,108250.0,108240.0,0.35227622]
[1751709905505,0.39489915,108250.0,108240.0,0.35223622]
[1751709908359,0.40413625,108250.0,108240.0,0.30715622]
[1751709908556,0.40413625,108250.0,108240.0,0.35227622]
[1751709908557,0.39489915,108250.0,108240.0,0.35227622]
[1751709908760,0.40413625,108250.0,108240.0,0.35227622]
[1751709911065,0.11519538,108250.0,108240.0,0.35227622]
[1751709911269,0.31330377,108250.0,108240.0,0.35227622]
[1751709911878,0.0336,108250.0,108240.0,0.35227622]
[1751709919054,0.0428371,108250.0,108240.0,0.35227622]
[1751709920058,0.0336,108250.0,108240.0,0.35227622]
[1751709920257,0.32254087,108250.0,108240.0,0.35227622]
[1751709920641,0.40635568,108250.0,108240.0,0.35227622]
[1751709921038,0.12665191,108250.0,108240.0,0.35227622]
[1751709921310,0.39711858,108250.0,108240.0,0.35227622]
[1751709921636,0.11741481,108250.0,108240.0,0.35227622]
[1751709924333,0.11741481,108250.0,108240.0,0.63197999]
[1751709925022,0.0336,108250.0,108240.0,0.63197999]
[1751709926267,0.0185,108250.0,108240.0,0.26083929]
[1751709926468,0.0342,108250.0,108240.0,0.26083929]
[1751709927329,0.04343719,108250.0,108240.0,0.26083929]
[1751709927692,0.0342,108250.0,108240.0,0.26083929]
[1751709928252,0.10857864,108250.0,108240.0,0.54054306]
[1751709929057,0.11781583,108250.0,108240.0,0.26083929]
[1751709929257,0.11781574,108250.0,108240.0,0.26083929]
[1751709929672,0.10857864,108250.0,108240.0,0.26083929]
[1751709931041,0.0342,108250.0,108240.0,0.26083929]
[1751709931652,0.0031,108250.0,108240.0,0.26083929]
[1751709931870,0.0031,108250.0,108240.0,0.94238376]
[1751709932501,0.0031,108250.0,108240.0,0.66267999]
[1751709932648,0.0031,108250.0,108240.0,0.94238376]
[1751709935804,0.0031,108250.0,108240.0,0.66267999]
[1751709943793,0.0031,108250.0,108240.0,0.94238376]
[1751709946348,0.0031,108250.0,108240.0,0.66267999]
[1751709946488,0.0031,108250.0,108240.0,0.94238376]
[1751709947312,0.0031,108250.0,108240.0,0.66267999]
[1751709951750,0.0031,108250.0,108240.0,0.94238376]
[1751709951989,0.0021,108250.0,108240.0,0.94238376]
[1751709952143,0.0001,108250.0,108240.0,0.94238376]
[1751709960094,0.0001,108250.0,108240.0,1.14288461]
[1751709960297,0.0001,108250.0,108240.0,1.51064761]
[1751709961155,0.0001,108250.0,108240.0,1.51164761]
[1751709961376,0.0001,108250.0,108240.0,1.51264761]
[1751709965942,0.0001,108250.0,108240.0,0.76728007]
[1751709966180,0.0001,108250.0,108240.0,1.20224384]
[1751709967421,0.0001,108250.0,108240.0,1.48194761]
[1751709967628,0.0001,108250.0,108240.0,1.51464761]
[1751709974444,0.0001,108250.0,108240.0,1.28356761]
[1751709974645,0.0001,108250.0,108240.0,1.51456761]
[1751709981659,0.0001,108250.0,108240.0,0.95516007]
[1751709981876,0.0001,108250.0,108240.0,1.51456761]
[1751709985722,0.0001,108250.0,108240.0,1.49806761]
[1751709985935,0.0001,108250.0,108240.0,1.48186761]
[1751709986145,0.0001,108250.0,108240.0,1.45410461]
[1751709986591,0.0001,108250.0,108240.0,0.89469707]
[1751709986808,0.0001,108250.0,108240.0,1.45410461]
[1751710001469,0.0001,108250.0,108240.0,1.26818461]
[1751710001678,0.0317,108250.0,108240.0,1.45410461]
[1751710002058,0.0317,108250.0,108240.0,1.17440084]
[1751710002904,0.0317,108250.0,108240.0,1.45410461]
[1751710003335,0.0156,108250.0,108240.0,1.45410461]
[1751710005056,0.0001,108250.0,108240.0,1.45410461]
[1751710012142,0.0001,108250.0,108240.0,0.89469707]
[1751710012348,0.0001,108250.0,108240.0,1.45410461]
[1751710020260,0.0001,108250.0,108240.0,0.89469707]
[1751710020466,0.0001,108250.0,108240.0,1.45410461]
[1751710024455,0.0001,108250.0,108240.0,1.48570461]
[1751710025950,0.0331,108270.0,108260.0,0.49215423]
[1751710026174,0.0331,108270.0,108260.0,0.76947116]
[1751710027246,0.0341,108270.0,108260.0,0.76947116]
[1751710027655,0.0361,108270.0,108260.0,0.76947116]
[1751710028492,0.0204,108270.0,108260.0,0.76947116]
[1751710029137,0.005,108270.0,108260.0,0.76947116]
[1751710029340,0.005,108270.0,108260.0,0.77877239]
[1751710030184,0.004,108270.0,108260.0,0.79331324]
[1751710030391,0.004,108270.0,108260.0,1.07301701]
[1751710030596,0.004,108270.0,108260.0,0.79331324]
[1751710030800,0.002,108270.0,108260.0,0.79331324]
[1751710032274,0.0021,108270.0,108260.0,0.79331324]
[1751710034975,0.0187,108270.0,108260.0,0.79331324]
[1751710035586,0.0353,108270.0,108260.0,0.79331324]
[1751710036723,0.0353,108270.0,108260.0,0.51360947]
[1751710037144,0.0353,108270.0,108260.0,0.79331324]
[1751710038910,0.0353,108270.0,108260.0,0.51360947]
[1751710039121,0.0353,108270.0,108260.0,0.79331324]
[1751710039573,0.0353,108270.0,108260.0,0.54410862]
[1751710040209,0.0353,108270.0,108260.0,0.31318862]
[1751710040210,0.31500377,108270.0,108260.0,0.31318862]
[1751710040433,0.34867998,108270.0,108260.0,0.53480739]
[1751710040615,0.34867998,108270.0,108260.0,0.34892739]
[1751710040849,0.35791546,108270.0,108260.0,0.34892739]
[1751710041257,0.31500377,108270.0,108260.0,0.34892739]
[1751710043146,0.31800377,108270.0,108260.0,0.34892739]
[1751710048274,0.32723917,108270.0,108260.0,0.34892739]
[1751710048483,0.31800377,108270.0,108260.0,0.34892739]
[1751710055175,0.31800377,108270.0,108260.0,0.30388739]
[1751710055353,0.31800377,108270.0,108260.0,0.25749046]
[1751710055354,0.32723925,108270.0,108260.0,0.25749046]
[1751710055577,0.41091601,108270.0,108260.0,0.25749046]
[1751710055774,0.42015158,108270.0,108260.0,0.25749046]
[1751710056975,0.42938732,108270.0,108260.0,0.25749046]
[1751710057210,0.42015158,108270.0,108260.0,0.25749046]
[1751710057618,0.42921378,108270.0,108260.0,0.25749046]
[1751710057983,0.32723925,108270.0,108260.0,0.25749046]
[1751710058205,0.33647482,108270.0,108260.0,0.25749046]
[1751710059226,0.34571056,108270.0,108260.0,0.25749046]
[1751710059453,0.33291482,108270.0,108260.0,0.25749046]
[1751710059836,0.33291482,108270.0,108260.0,0.21245046]
[1751710060039,0.36310471,108270.0,108260.0,0.25749046]
[1751710060253,0.35386914,108270.0,108260.0,0.25749046]
[1751710060638,0.32367925,108270.0,108260.0,0.25749046]
[1751710061390,0.33291499,108270.0,108260.0,0.25749046]
[1751710061592,0.32367925,108270.0,108260.0,0.25749046]
[1751710061795,0.3329149,108270.0,108260.0,0.25749046]
[1751710062373,0.34236623,108270.0,108260.0,0.25749046]
[1751710062761,0.33291482,108270.0,108260.0,0.25749046]
[1751710062964,0.32367925,108270.0,108260.0,0.25749046]
[1751710063776,0.33463801,108270.0,108260.0,0.25749046]
[1751710065623,0.34387366,108270.0,108260.0,0.25749046]
[1751710066079,0.05493424,108270.0,108260.0,0.25749046]
[1751710066318,0.33473801,108270.0,108260.0,0.25749046]
[1751710066895,0.34397366,108270.0,108260.0,0.25749046]
[1751710067067,0.33473801,108270.0,108260.0,0.25749046]
[1751710074745,0.34397366,108270.0,108260.0,0.25749046]
[1751710074947,0.33473801,108270.0,108260.0,0.25749046]
[1751710080785,0.35692072,108270.0,108260.0,0.25749046]
[1751710082878,0.36615629,108270.0,108260.0,0.25749046]
[1751710083081,0.35692072,108270.0,108260.0,0.25749046]
[1751710084418,0.34768524,108270.0,108260.0,0.25749046]
[1751710084657,0.35692064,108270.0,108260.0,0.25749046]
[1751710084875,0.34596188,108270.0,108260.0,0.25749046]
[1751710085112,0.33672648,108270.0,108260.0,0.25749046]
[1751710086008,0.32012648,108270.0,108260.0,0.25749046]
[1751710092103,0.32936205,108270.0,108260.0,0.25749046]
[1751710092317,0.33612648,108270.0,108260.0,0.25749046]
[1751710092511,0.34536196,108270.0,108260.0,0.25749046]
[1751710092948,0.43679889,108270.0,108260.0,0.25749046]
[1751710093361,0.42756341,108270.0,108260.0,0.25749046]
[1751710093763,0.43679889,108270.0,108260.0,0.25749046]
[1751710094121,0.42756341,108270.0,108260.0,0.25749046]
[1751710094319,0.33612648,108270.0,108260.0,0.25749046]
[1751710094765,0.34536196,108270.0,108260.0,0.25749046]
[1751710095339,0.35459753,108270.0,108260.0,0.25749046]
[1751710095975,0.36383318,108270.0,108260.0,0.25749046]
[1751710098479,0.35459753,108270.0,108260.0,0.25749046]
[1751710099952,0.35459753,108270.0,108260.0,0.25754046]
[1751710103679,0.44603446,108270.0,108260.0,0.25754046]
[1751710104654,0.43679889,108270.0,108260.0,0.25754046]
[1751710105789,0.44603446,108270.0,108260.0,0.25754046]
[1751710106398,0.43679889,108270.0,108260.0,0.25754046]
[1751710107196,0.42756341,108270.0,108260.0,0.25754046]
[1751710107400,0.61228678,108270.0,108260.0,5e-05]
[1751710107653,0.65846785,108270.0,108260.0,0.19402745]
[1751710107845,0.64923211,108270.0,108260.0,5e-05]
[1751710108443,0.64923211,108270.0,108260.0,0.00928702]
[1751710108692,0.6862124,108270.0,108260.0,0.21250106]
[1751710109303,0.59477547,108270.0,108260.0,0.21250106]
[1751710109439,0.55779518,108270.0,108260.0,0.21250106]
[1751710109891,0.55779518,108270.0,108260.0,0.21250123]
[1751710110437,0.55778676,108270.0,108260.0,0.21250123]
[1751710111416,0.55778676,108270.0,108260.0,0.22173791]
[1751710112317,0.64922369,108270.0,108260.0,0.22173791]
[1751710113335,0.55778676,108270.0,108260.0,0.22173791]
[1751710117974,0.27808299,108270.0,108260.0,0.22173791]
[1751710118173,0.55778676,108270.0,108260.0,0.22173791]
[1751710119617,0.55778676,108270.0,108260.0,0.21250123]
[1751710120921,0.54855077,108270.0,108260.0,5e-05]
[1751710121485,0.61771351,108270.0,108260.0,5e-05]
[1751710121864,0.61771351,108270.0,108260.0,0.00928702]
[1751710124772,0.61771351,108270.0,108260.0,5e-05]
[1751710124905,0.89741728,108270.0,108260.0,5e-05]
[1751710125307,0.23371421,108260.0,108250.0,0.25487598]